bitfinex/quotes_SOLUSD_20251031
["timestamp","ask_amount","ask_price","bid_price","bid_amount"]
[1761875834776,4.00835118,186.55,186.53,0.66]
[1761875835008,0.66,186.56,186.53,0.66]
[1761875835314,4.00836229,186.55,186.54,5.36078052]
[1761875835486,4.00836229,186.55,186.54,8.4687288]
[1761875837114,4.01029426,186.55,186.54,8.4687288]
[1761875837312,4.01029426,186.55,186.54,3.10794828]
[1761875838493,4.01029426,186.55,186.54,8.4687288]
[1761875839109,4.01029426,186.55,186.54,9.1287288]
[1761875839617,4.01067278,186.55,186.54,9.1287288]
[1761875840989,4.01067278,186.55,186.54,19.20187963]
[1761875841301,0.71,186.62,186.55,10.07315083]
[1761875841613,4.7200626,186.61,186.55,10.73315083]
[1761875841917,4.0100626,186.6,186.57,9.78882769]
[1761875842116,24.6020626,186.59,186.56,5.35793116]
[1761875842317,7.61513163,186.58,186.48,0.66]
[1761875842518,20.592,186.55,186.48,0.66]
[1761875842705,7.63222841,186.54,186.52,3.10794828]
[1761875843014,7.63222841,186.53,186.48,6.02233429]
[1761875843315,7.63222841,186.52,186.51,3.10794828]
[1761875843500,8.34222841,186.52,186.51,3.10794828]
[1761875843695,8.34222841,186.52,186.48,5.36233429]
[1761875843918,7.6303565,186.51,186.48,6.02233429]
[1761875844094,0.71,186.52,186.48,6.02233429]
[1761875844297,3.99906884,186.51,186.48,6.02233429]
[1761875844495,0.71,186.52,186.48,6.02233429]
[1761875844795,3.99914901,186.51,186.48,6.02233429]
[1761875844995,3.99956216,186.5,186.48,6.02233429]
[1761875845205,0.71,186.52,186.48,6.02233429]
[1761875845428,3.99873098,186.51,186.48,6.02233429]
[1761875845726,20.592,186.47,186.45,0.1]
[1761875845908,3.99859432,186.46,186.45,0.1]
[1761875846216,4.70859432,186.46,186.45,0.1]
[1761875846426,25.30059432,186.46,186.45,0.1]
[1761875846636,4.70859432,186.46,186.45,0.1]
[1761875847224,30.66367487,186.46,186.45,0.1]
[1761875847606,31.94201768,186.46,186.45,0.1]
[1761875848132,33.77162315,186.46,186.45,0.1]
[1761875849514,3.99859432,186.46,186.45,0.1]
[1761875849811,0.69,186.46,186.45,0.1]
[1761875850019,28.37666189,186.46,186.45,0.1]
[1761875851009,25.26871361,186.46,186.45,0.1]
[1761875851509,30.63179416,186.46,186.45,0.1]
[1761875853014,25.26871361,186.46,186.45,0.1]
[1761875853234,21.282,186.46,186.45,0.1]
[1761875854210,29.75302883,186.46,186.45,0.1]
[1761875854537,33.73007856,186.46,186.45,0.1]
[1761875855613,33.73007856,186.46,186.4,0.2]
[1761875855614,36.55882437,186.46,186.4,0.2]
[1761875855815,3.10794828,186.41,186.26,5.56856029]
[1761875856027,20.592,186.37,186.28,3.30794828]
[1761875856215,0.69,186.36,186.29,3.10794828]
[1761875856542,2.15152085,186.37,186.32,3.30794828]
[1761875856724,0.69,186.37,186.32,3.30794828]
[1761875857037,3.10794828,186.38,186.32,5.56710753]
[1761875857241,0.69,186.37,186.32,5.56710753]
[1761875857415,3.10794828,186.37,186.32,5.56710753]
[1761875857832,3.79794828,186.37,186.32,5.56710753]
[1761875858038,3.10794828,186.37,186.32,5.56710753]
[1761875858343,23.69994828,186.36,186.32,0.2]
[1761875858542,20.592,186.36,186.32,0.2]
[1761875860846,20.592,186.36,186.32,5.56709478]
[1761875861433,20.592,186.36,186.32,0.2]
[1761875862051,20.592,186.36,186.32,5.56709006]
[1761875863337,20.592,186.36,186.33,5.56680209]
[1761875863651,3.10794828,186.38,186.34,6.1565044]
[1761875863854,23.69994828,186.38,186.34,6.1565044]
[1761875864439,20.592,186.38,186.34,5.4665044]
[1761875865233,20.592,186.38,186.35,3.10794828]
[1761875865535,3.10794828,186.41,186.35,3.79794828]
[1761875865754,5.36451735,186.42,186.35,3.79794828]
[1761875865954,23.69994828,186.41,186.35,3.79794828]
[1761875866325,29.06454253,186.41,186.35,9.16396683]
[1761875866530,23.69994828,186.41,186.35,9.16396683]
[1761875866831,23.69994828,186.42,186.36,3.79794828]
[1761875867245,0.69,186.44,186.36,3.79794828]
[1761875867246,5.36395487,186.43,186.36,3.79794828]
[1761875867561,20.592,186.4,186.36,3.79794828]
[1761875867766,20.592,186.41,186.38,3.10794828]
[1761875867948,9.16165098,186.44,186.38,3.10794828]
[1761875868145,9.16165098,186.44,186.38,3.79794828]
[1761875868354,20.592,186.43,186.38,3.79794828]
[1761875868735,20.592,186.43,186.38,9.16319629]
[1761875868959,21.282,186.43,186.38,9.16319629]
[1761875869482,20.592,186.43,186.39,0.69]
[1761875869637,29.75335648,186.45,186.39,0.69]
[1761875869836,3.95388985,186.44,186.39,0.69]
[1761875870036,3.10794828,186.4,186.34,5.4665315]
[1761875870342,3.10794828,186.39,186.34,0.1]
[1761875870747,6.05542287,186.38,186.34,0.1]
[1761875870948,6.05542287,186.38,186.34,0.79]
[1761875871559,5.36513508,186.39,186.34,6.15635679]
[1761875871757,3.79794828,186.4,186.34,9.26430507]
[1761875871958,20.592,186.38,186.35,3.10794828]
[1761875872458,20.592,186.38,186.35,3.79794828]
[1761875872761,6.05508588,186.4,186.35,9.16414117]
[1761875872967,6.05508588,186.4,186.36,0.69]
[1761875873261,6.05508588,186.4,186.35,3.10794828]
[1761875873564,6.05508588,186.4,186.35,3.79794828]
[1761875873763,9.16303416,186.4,186.35,9.16413374]
[1761875873957,9.16303416,186.4,186.35,3.79794828]
[1761875874459,8.47303416,186.4,186.35,0.69]
[1761875874764,6.05528361,186.39,186.35,0.69]
[1761875875260,0.69,186.38,186.34,0.1]
[1761875875441,3.79794828,186.38,186.34,0.1]
[1761875875951,0.69,186.37,186.34,0.1]
[1761875878572,21.282,186.37,186.34,0.1]
[1761875878871,26.64772516,186.37,186.34,0.1]
[1761875879069,0.66,186.36,186.34,0.1]
[1761875880368,29.06567344,186.37,186.34,0.1]
[1761875880554,21.252,186.37,186.34,0.1]
[1761875880765,10.0350124,186.44,186.36,3.10794828]
[1761875880950,3.10794828,186.41,186.35,0.7]
[1761875881272,3.96414112,186.4,186.36,3.10794828]
[1761875881772,0.66,186.39,186.35,3.10794828]
[1761875882075,4.62414112,186.39,186.35,3.10794828]
[1761875882457,3.96414112,186.39,186.35,3.10794828]
[1761875882658,3.96414112,186.39,186.36,0.7]
[1761875882864,3.96414112,186.39,186.35,3.80794828]
[1761875883163,4.62414112,186.39,186.35,3.80794828]
[1761875883756,9.98937325,186.39,186.34,5.46629581]
[1761875883976,3.96414112,186.38,186.34,9.27424409]
[1761875884356,8.47275751,186.4,186.35,0.7]
[1761875884548,3.96908406,186.39,186.35,0.7]
[1761875884950,3.96908406,186.39,186.35,3.80794828]
[1761875885458,3.96908406,186.38,186.36,0.7]
[1761875885655,20.592,186.42,186.37,3.10794828]
[1761875885858,3.97104619,186.41,186.37,3.10794828]
[1761875886069,3.97104619,186.4,186.37,3.80794828]
[1761875886275,3.97104619,186.39,186.38,0.7]
[1761875886460,3.97104619,186.41,186.38,0.7]
[1761875886661,3.97104619,186.4,186.38,0.7]
[1761875886882,3.97104619,186.39,186.38,3.80794828]
[1761875887174,3.97104619,186.39,186.38,9.17333083]
[1761875887356,3.97104619,186.39,186.38,3.80794828]
[1761875887561,3.97104619,186.39,186.38,0.7]
[1761875887961,3.97104619,186.39,186.38,6.06538255]
[1761875889378,3.97104619,186.39,186.38,0.7]
[1761875889889,3.97104619,186.39,186.37,3.10794828]
[1761875890194,3.97104619,186.38,186.37,5.36567044]
[1761875890672,3.97104619,186.38,186.37,6.06567044]
[1761875891403,3.97104619,186.38,186.37,8.05825325]
[1761875892769,3.97104619,186.38,186.37,6.06567044]
[1761875893065,3.97104619,186.38,186.37,8.05825325]
[1761875895995,3.97104619,186.38,186.37,6.06567044]
[1761875896186,3.97104619,186.38,186.37,8.05825325]
[1761875898639,4.00168478,186.38,186.37,8.05825325]
[1761875899309,4.00168478,186.38,186.37,2.69258281]
[1761875899817,4.00168478,186.38,186.37,8.05825325]
[1761875901028,4.00168478,186.38,186.34,0.81]
[1761875901194,4.00168478,186.37,186.36,1.99258281]
[1761875901807,4.69168478,186.37,186.34,7.45904219]
[1761875902111,4.00168478,186.36,186.34,0.1]
[1761875902302,4.00168478,186.35,186.34,0.1]
[1761875904109,4.00168478,186.35,186.34,7.4591171]
[1761875904625,4.00168478,186.35,186.34,8.1691171]
[1761875905706,3.6034547,186.4,186.34,18.24226793]
[1761875905902,6.00495134,186.46,186.39,1.99258281]
[1761875905903,3.6034547,186.42,186.39,1.99258281]
[1761875906103,3.52818056,186.41,186.4,1.99258281]
[1761875906517,3.52818056,186.41,186.4,2.70258281]
[1761875907304,3.52818056,186.41,186.4,8.06738967]
[1761875908017,3.52818056,186.41,186.4,2.70258281]
[1761875908713,3.52818056,186.41,186.4,8.06738967]
[1761875909827,3.6034547,186.44,186.4,8.06738967]
[1761875910028,3.52829765,186.43,186.41,1.99258281]
[1761875910220,3.52829765,186.42,186.41,1.99258281]
[1761875910417,3.52829765,186.42,186.37,0.7]
[1761875910616,4.19789693,186.41,186.39,1.99258281]
[1761875910822,0.67,186.41,186.39,1.99258281]
[1761875912139,4.19848473,186.43,186.39,7.35761231]
[1761875912340,3.52848473,186.42,186.39,7.35761231]
[1761875912518,3.52848473,186.41,186.39,7.35761231]
[1761875912718,0.67,186.43,186.39,7.35761231]
[1761875912927,3.52893592,186.42,186.39,7.35761231]
[1761875913224,3.52893592,186.41,186.39,8.05761231]
[1761875913422,0.67,186.43,186.39,8.05761231]
[1761875913619,20.592,186.39,186.34,0.1]
[1761875913823,5.52135575,186.38,186.34,0.1]
[1761875914024,4.19877294,186.37,186.34,0.1]
[1761875914222,3.52877294,186.36,186.34,0.1]
[1761875914419,0.67,186.36,186.34,0.1]
[1761875914623,0.67,186.35,186.34,0.1]
[1761875915242,3.52893221,186.36,186.34,0.1]
[1761875915427,4.19893221,186.36,186.34,0.1]
[1761875916427,3.52893221,186.36,186.34,2.09258281]
[1761875916652,9.63889472,186.38,186.34,2.79258281]
[1761875916834,3.52805149,186.37,186.34,2.79258281]
[1761875917015,3.52805149,186.36,186.34,2.79258281]
[1761875917222,9.63889472,186.38,186.34,2.09258281]
[1761875917533,3.52807313,186.37,186.34,0.1]
[1761875917725,9.63889472,186.38,186.34,0.1]
[1761875917726,7.53339572,186.36,186.34,0.1]
[1761875918051,4.00532259,186.35,186.34,0.1]
[1761875920344,9.3715689,186.35,186.34,0.1]
[1761875920531,7.5327335,186.35,186.34,2.79258281]
[1761875920727,4.00532259,186.35,186.34,0.1]
[1761875920942,7.53260841,186.35,186.34,0.1]
[1761875921329,4.00532259,186.35,186.34,0.1]
[1761875921539,4.00532259,186.35,186.34,2.79258281]
[1761875922237,4.00532259,186.35,186.34,0.8]
[1761875924537,4.00532259,186.35,186.34,0.1]
[1761875924849,7.53351199,186.35,186.34,0.1]
[1761875926853,39.75779581,186.35,186.34,0.1]
[1761875929954,37.765213,186.35,186.34,0.1]
[1761875930353,37.095213,186.35,186.34,0.1]
[1761875931055,37.765213,186.35,186.34,0.1]
[1761875931958,37.08898468,186.35,186.34,0.1]
[1761875934166,33.48552998,186.35,186.34,0.1]
[1761875935261,29.95734058,186.35,186.34,0.1]
[1761875935841,24.59109427,186.35,186.34,0.8]
[1761875936362,24.59109427,186.35,186.34,0.1]
[1761875937259,3.99909427,186.35,186.34,0.1]
[1761875939465,30.66734058,186.35,186.34,0.1]
[1761875939643,39.72989857,186.35,186.34,0.1]
[1761875940275,37.73731576,186.35,186.34,0.1]
[1761875940777,37.02731576,186.35,186.34,0.1]
[1761875941276,31.66106945,186.35,186.34,0.1]
[1761875941444,24.59109427,186.35,186.34,0.1]
[1761875942075,3.99909427,186.35,186.34,0.82]
[1761875942675,25.95744236,186.38,186.34,2.81258281]
[1761875942972,3.998462,186.37,186.34,2.81258281]
[1761875943171,5.36519608,186.39,186.35,2.71258281]
[1761875943370,7.47002822,186.38,186.35,2.71258281]
[1761875943550,3.99890324,186.37,186.35,1.99258281]
[1761875943749,3.99890324,186.36,186.35,1.99258281]
[1761875943974,3.99890324,186.36,186.34,0.1]
[1761875944277,11.66676191,186.39,186.35,0.72]
[1761875944475,7.47060072,186.38,186.35,0.72]
[1761875944652,3.9990657,186.37,186.35,0.72]
[1761875944853,3.9990657,186.36,186.35,2.71258281]
[1761875945067,8.9641791,186.39,186.35,2.71258281]
[1761875945265,3.99759782,186.38,186.36,0.72]
[1761875945467,3.99759782,186.37,186.36,0.72]
[1761875945854,3.99759782,186.39,186.36,0.72]
[1761875946063,3.99759782,186.38,186.36,2.71258281]
[1761875946273,25.95684593,186.4,186.36,2.71258281]
[1761875946457,3.99629094,186.39,186.37,0.72]
[1761875946658,3.99629094,186.38,186.37,0.72]
[1761875946953,3.99629094,186.38,186.37,2.71258281]
[1761875947259,24.58829094,186.41,186.37,2.71258281]
[1761875947473,1.99258281,186.42,186.34,0.1]
[1761875947474,3.99629094,186.4,186.38,6.08533932]
[1761875947675,5.36258818,186.48,186.39,20.47174174]
[1761875947855,7.46616819,186.47,186.44,1.99258281]
[1761875948055,3.9976959,186.46,186.44,1.99258281]
[1761875948259,3.9976959,186.45,186.44,1.99258281]
[1761875948763,5.5891432,186.51,186.44,1.99258281]
[1761875948965,7.46291383,186.5,186.46,1.99258281]
[1761875949162,3.9961961,186.49,186.46,1.99258281]
[1761875949371,3.9961961,186.48,186.45,2.71258281]
[1761875949568,3.9961961,186.47,186.45,2.71258281]
[1761875949872,26.66416345,186.5,186.45,2.71258281]
[1761875950068,3.99323009,186.49,186.45,2.71258281]
[1761875950666,3.99323009,186.49,186.46,2.71258281]
[1761875951565,3.99323009,186.49,186.46,3.83103222]
[1761875951961,24.58523009,186.49,186.46,3.83103222]
[1761875952190,3.98868075,186.48,186.46,3.83103222]
[1761875953377,20.592,186.49,186.47,3.83103222]
[1761875953584,6.07085485,186.54,186.47,0.72]
[1761875953758,10.55521347,186.53,186.48,3.11103222]
[1761875953957,28.03603402,186.52,186.46,6.08298047]
[1761875954174,3.98622955,186.51,186.48,3.11103222]
[1761875954481,24.57822955,186.51,186.48,3.11103222]
[1761875954781,20.592,186.51,186.48,3.11103222]
[1761875955271,20.592,186.51,186.49,3.83103222]
[1761875955464,20.592,186.51,186.5,3.11103222]
[1761875955671,20.592,186.51,186.5,3.83103222]
[1761875956265,20.592,186.51,186.5,3.11103222]
[1761875956586,25.95310636,186.53,186.49,3.78103222]
[1761875956784,3.98152643,186.52,186.49,3.78103222]
[1761875957174,20.592,186.53,186.49,3.78103222]
[1761875957378,20.592,186.51,186.49,3.78103222]
[1761875958493,25.95307902,186.53,186.49,3.78103222]
[1761875959078,25.95307902,186.53,186.49,3.11103222]
[1761875959275,26.65307902,186.53,186.49,3.11103222]
[1761875959687,26.65307902,186.53,186.49,3.78103222]
[1761875959886,0.1,186.55,186.51,3.11103222]
[1761875960202,20.592,186.53,186.52,3.11103222]
[1761875960387,0.1,186.55,186.52,3.11103222]
[1761875960565,0.1,186.55,186.52,3.78103222]
[1761875960760,0.1,186.55,186.52,0.67]
[1761875960972,9.43883681,186.55,186.51,3.11103222]
[1761875961172,5.46051544,186.55,186.51,3.78103222]
[1761875961572,0.1,186.55,186.52,3.78103222]
[1761875962991,5.46056077,186.55,186.52,0.67]
[1761875963773,5.46056077,186.55,186.51,3.11103222]
[1761875963968,9.27159299,186.55,186.5,3.78103222]
[1761875964395,9.27159299,186.55,186.5,3.11103222]
[1761875964690,9.27159299,186.55,186.51,0.67]
[1761875964870,5.46056077,186.55,186.51,3.78103222]
[1761875965593,5.46056077,186.55,186.52,3.78103222]
[1761875965988,0.1,186.55,186.52,3.78103222]
[1761875966191,0.1,186.55,186.54,3.11103222]
[1761875966582,0.1,186.55,186.54,3.78103222]
[1761875968082,0.1,186.55,186.54,0.67]
[1761875969192,0.1,186.55,186.53,3.11103222]
[1761875969498,0.1,186.55,186.53,3.77103222]
[1761875970283,0.1,186.55,186.54,0.66]
[1761875972702,0.1,186.55,186.53,3.11103222]
[1761875972897,0.1,186.55,186.53,3.77103222]
[1761875973279,9.24161731,186.55,186.49,5.36221781]
[1761875973588,9.24161731,186.55,186.5,0.66]
[1761875974000,0.67,186.54,186.5,0.66]
[1761875974310,3.78103222,186.54,186.5,0.66]
[1761875975298,0.67,186.54,186.5,0.66]
[1761875975699,0.67,186.54,186.5,3.77103222]
[1761875975913,8.57161731,186.55,186.5,9.13295463]
[1761875976112,8.57161731,186.55,186.48,61.7]
[1761875976113,9.24161731,186.55,186.51,0.66]
[1761875976711,3.78103222,186.54,186.49,3.11103222]
[1761875976918,3.78103222,186.54,186.48,3.77103222]
[1761875977117,0.67,186.53,186.48,3.77103222]
[1761875977311,6.03115962,186.53,186.49,3.11103222]
[1761875977512,5.36115962,186.53,186.49,3.77103222]
[1761875977817,5.36115962,186.53,186.5,0.66]
[1761875979890,5.36081785,186.54,186.5,3.77103222]
[1761875980096,26.05254764,186.55,186.5,9.13294166]
[1761875980302,26.05254764,186.55,186.51,0.66]
[1761875980707,20.592,186.53,186.52,3.11103222]
[1761875981206,0.1,186.55,186.52,0.66]
[1761875981402,0.1,186.55,186.52,3.11103222]
[1761875981600,0.1,186.55,186.5,5.36190944]
[1761875981601,0.1,186.55,186.53,3.77103222]
[1761875982002,0.1,186.55,186.54,3.77103222]
[1761875988323,4.07637458,186.55,186.54,3.77103222]
[1761875988528,0.1,186.55,186.54,3.77103222]
[1761875988731,4.07637458,186.55,186.54,3.77103222]
[1761875989315,7.60253326,186.55,186.54,3.77103222]
[1761875990420,7.60303204,186.55,186.54,3.77103222]
[1761875992521,7.60303204,186.55,186.54,3.11103222]
[1761875996327,7.60303204,186.55,186.54,3.77103222]
[1761875996738,7.60303204,186.55,186.54,3.11103222]
[1761875998835,7.60303204,186.55,186.54,3.82103222]
[1761876000058,7.60303204,186.55,186.54,3.11103222]
[1761876000382,7.60303204,186.55,186.53,3.11103222]
[1761876000585,7.50303204,186.54,186.53,3.82103222]
[1761876000738,7.50303204,186.54,186.51,3.11103222]
[1761876000937,7.53248421,186.53,186.52,3.11103222]
[1761876001134,7.53248421,186.53,186.51,0.71]
[1761876001338,11.83296641,186.52,186.43,9.78882769]
[1761876001578,11.13296641,186.51,186.49,3.11103222]
[1761876001779,7.53248421,186.5,186.49,3.11103222]
[1761876002060,7.53248421,186.5,186.49,3.82103222]
[1761876002676,4.00582675,186.5,186.49,9.18325003]
[1761876002851,0.1,186.55,186.49,9.18325003]
[1761876003056,7.59702939,186.54,186.53,3.11103222]
[1761876003770,8.29702939,186.54,186.49,5.36221781]
[1761876003972,11.19751159,186.53,186.52,3.11103222]
[1761876004182,7.59702939,186.53,186.52,3.11103222]
[1761876004397,7.59702939,186.53,186.52,3.82103222]
[1761876004680,7.59702939,186.53,186.52,9.18238757]
[1761876004877,4.00832471,186.53,186.52,9.18238757]
[1761876005078,4.00832471,186.53,186.5,0.71]
[1761876005309,11.19544425,186.52,186.5,3.11103222]
[1761876005451,7.59496205,186.51,186.46,18.77020118]
[1761876005658,3.6004822,186.53,186.5,3.82103222]
[1761876005959,0.1,186.55,186.5,3.82103222]
[1761876005960,7.59362791,186.52,186.5,0.71]
[1761876006158,4.00635286,186.51,186.47,9.78882769]
[1761876006359,0.1,186.55,186.48,18.76876876]
[1761876006360,3.6004822,186.54,186.48,18.76876876]
[1761876006680,7.59370371,186.53,186.48,18.76876876]
[1761876006980,4.00653697,186.52,186.49,0.71]
[1761876007181,3.6004822,186.54,186.49,0.71]
[1761876007391,4.00580278,186.53,186.49,0.71]
[1761876007559,0.1,186.55,186.49,0.71]
[1761876007761,7.59268432,186.54,186.49,0.71]
[1761876008072,4.00611521,186.53,186.49,0.71]
[1761876008380,3.7004822,186.55,186.52,3.11103222]
[1761876008688,7.59613454,186.54,186.53,5.36106792]
[1761876008980,4.00794692,186.54,186.53,5.36106792]
[1761876009199,0.1,186.55,186.53,6.07106792]
[1761876009385,0.1,186.55,186.54,0.71]
[1761876009573,4.10916838,186.55,186.54,0.71]
[1761876009908,0.1,186.55,186.54,13.89418305]
[1761876010496,0.1,186.55,186.54,19.25496357]
[1761876013518,0.1,186.55,186.54,18.13245397]
[1761876014711,0.1,186.55,186.52,0.71]
[1761876014923,0.1,186.55,186.52,1.98852262]
[1761876015074,4.00159425,186.54,186.53,1.98852262]
[1761876015277,4.00138683,186.54,186.53,2.69852262]
[1761876016915,0.1,186.55,186.53,8.05959054]
[1761876017076,0.1,186.55,186.54,2.69852262]
[1761876017278,0.1,186.55,186.54,12.48735031]
[1761876018107,4.10140645,186.55,186.54,1.98852262]
[1761876018329,7.68313797,186.55,186.53,7.34959054]
[1761876018613,4.00140645,186.54,186.53,6.07106792]
[1761876019781,4.00140645,186.54,186.53,8.05959054]
[1761876021200,0.1,186.55,186.53,8.05959054]
[1761876021401,0.1,186.55,186.54,1.98852262]
[1761876021607,4.10294214,186.55,186.54,1.98852262]
[1761876022106,4.10294214,186.55,186.54,7.34930314]
[1761876022504,4.10294214,186.55,186.53,0.67]
[1761876022711,0.1,186.55,186.54,1.98852262]
[1761876023010,7.68760115,186.55,186.53,1.98852262]
[1761876023190,4.00351599,186.54,186.53,1.98852262]
[1761876024208,4.00351599,186.54,186.53,7.34959054]
[1761876024607,4.00351599,186.54,186.51,7.35002425]
[1761876024812,0.1,186.55,186.51,8.02002425]
[1761876024989,7.62801664,186.54,186.52,1.98852262]
[1761876025191,0.1,186.55,186.52,2.65852262]
[1761876025400,7.62878686,186.54,186.52,2.65852262]
[1761876025591,0.1,186.55,186.52,2.65852262]
[1761876025803,7.62835665,186.54,186.52,8.01962208]
[1761876025997,0.1,186.55,186.52,8.01962208]
[1761876026189,8.30814097,186.54,186.51,5.36159689]
[1761876026384,7.6288921,186.53,186.51,7.35011951]
[1761876026614,4.00391184,186.52,186.51,7.35011951]
[1761876028700,7.62740858,186.52,186.51,7.35011951]
[1761876031124,4.00391184,186.52,186.51,8.01011951]
[1761876031522,7.62777966,186.52,186.51,8.01011951]
[1761876032316,4.00391184,186.52,186.51,8.01011951]
[1761876036117,4.00391184,186.52,186.51,7.35016542]
[1761876036836,4.00391184,186.52,186.51,8.01016542]
[1761876037012,4.00391184,186.52,186.51,6.0216428]
[1761876037207,4.00391184,186.52,186.51,8.01016542]
[1761876037713,4.00391184,186.52,186.51,6.0216428]
[1761876038035,4.00391184,186.52,186.51,8.01016542]
[1761876038334,4.00391184,186.52,186.51,6.0216428]
[1761876038531,4.00391184,186.52,186.51,8.01016542]
[1761876040622,4.00391184,186.52,186.51,6.0216428]
[1761876040825,4.00391184,186.52,186.51,8.01016542]
[1761876042235,0.1,186.55,186.51,8.01016542]
[1761876042521,7.62695141,186.54,186.52,0.66]
[1761876042729,0.1,186.55,186.52,0.66]
[1761876042928,7.62816868,186.54,186.52,0.66]
[1761876043110,0.1,186.55,186.53,5.36106792]
[1761876043434,7.62939026,186.54,186.53,5.36106792]
[1761876043611,7.62939026,186.54,186.53,6.02106792]
[1761876043930,7.62939026,186.54,186.53,8.00959054]
[1761876044230,7.62939026,186.54,186.53,6.02106792]
[1761876044432,7.62939026,186.54,186.53,8.00959054]
[1761876045024,7.62939026,186.54,186.53,7.34959054]
[1761876045830,7.62939026,186.54,186.53,1.98852262]
[1761876046019,7.62939026,186.54,186.53,7.34959054]
[1761876046651,7.62939026,186.54,186.53,8.00959054]
[1761876048440,4.00456892,186.54,186.53,8.00959054]
[1761876048632,4.00456892,186.54,186.53,17.79841823]
[1761876048932,0.1,186.55,186.53,17.79841823]
[1761876049122,0.1,186.55,186.54,2.64852262]
[1761876049324,7.72998078,186.55,186.53,15.14989561]
[1761876049626,0.1,186.55,186.54,2.64852262]
[1761876049945,4.10450307,186.55,186.54,2.64852262]
[1761876050335,4.10450307,186.55,186.54,6.02078052]
[1761876050524,4.10450307,186.55,186.54,8.00930314]
[1761876051428,4.10450307,186.55,186.54,0.66]
[1761876051633,7.72920145,186.55,186.54,1.98852262]
[1761876051944,7.72920145,186.55,186.52,5.36133317]
[1761876052148,10.33772407,186.54,186.49,1.98852262]
[1761876052323,7.62920145,186.53,186.49,7.35069573]
[1761876052522,7.62920145,186.52,186.47,0.66]
[1761876052719,7.62920145,186.51,186.49,1.98852262]
[1761876052923,6.08107439,186.53,186.49,1.98852262]
[1761876052924,7.62920145,186.5,186.49,1.98852262]
[1761876053449,7.62920145,186.5,186.48,1.98852262]
[1761876053647,7.62879825,186.49,186.47,5.36273738]
[1761876053831,7.62700258,186.48,186.45,7.35189081]
[1761876054039,7.62700258,186.47,186.45,7.35189081]
[1761876054335,0.72,186.49,186.45,7.35189081]
[1761876054544,7.62338355,186.48,186.45,7.35189081]
[1761876054729,7.62338355,186.47,186.45,7.35189081]
[1761876054930,0.72,186.48,186.45,7.35189081]
[1761876055235,4.00075423,186.47,186.45,7.35189081]
[1761876055437,0.72,186.48,186.45,7.35189081]
[1761876055747,3.99943731,186.47,186.44,5.36365586]
[1761876055951,1.98852262,186.5,186.44,5.36365586]
[1761876055952,3.99943731,186.46,186.45,1.98852262]
[1761876056159,2.70852262,186.5,186.45,1.98852262]
[1761876056334,8.28349491,186.49,186.45,1.98852262]
[1761876056627,7.56349491,186.48,186.45,1.98852262]
[1761876056832,3.99806714,186.47,186.45,1.98852262]
[1761876057035,0.72,186.49,186.45,7.35166487]
[1761876057256,3.99809673,186.48,186.45,7.35166487]
[1761876057440,3.99809673,186.47,186.45,7.35166487]
[1761876057644,3.99692913,186.46,186.43,5.36392241]
[1761876057830,7.56126751,186.45,186.4,1.98852262]
[1761876058157,3.99655705,186.44,186.4,1.98852262]
[1761876058454,3.99655705,186.44,186.38,0.66]
[1761876058455,3.99655705,186.43,186.38,0.66]
[1761876058637,4.70655705,186.43,186.37,10.48882769]
[1761876058842,0.71,186.43,186.38,1.98852262]
[1761876059143,0.71,186.43,186.38,7.35390386]
[1761876059343,0.71,186.43,186.38,8.05390386]
[1761876059528,4.70070648,186.43,186.38,8.05390386]
[1761876059953,3.99070648,186.43,186.42,1.98852262]
[1761876060144,1.98852262,186.48,186.42,1.98852262]
[1761876060346,1.98852262,186.45,186.4,1.98852262]
[1761876060547,3.99080413,186.44,186.4,1.98852262]
[1761876060853,4.70080413,186.44,186.41,1.98852262]
[1761876061169,0.71,186.44,186.41,1.98852262]
[1761876061371,0.71,186.43,186.4,7.35304213]
[1761876061670,2.69852262,186.43,186.38,1.98852262]
[1761876061970,9.53457757,186.42,186.35,5.36599341]
[1761876062162,4.69832485,186.41,186.35,7.35451603]
[1761876062337,6.68684747,186.41,186.35,7.35451603]
[1761876062544,0.71,186.4,186.35,7.35451603]
[1761876063671,0.71,186.41,186.37,1.98852262]
[1761876063855,21.302,186.41,186.38,1.98852262]
[1761876064165,21.302,186.41,186.37,1.98852262]
[1761876064370,0.71,186.4,186.36,1.98852262]